bitfinex/quotes_SOLUSD_20240622
["timestamp","ask_amount","ask_price","bid_price","bid_amount"]
[1719038823050,21.8191,136.12,136.09,7.3477]
[1719038824834,21.8191,136.12,136.08,7.3484]
[1719038827143,21.8191,136.12,136.09,7.348]
[1719038828140,21.8191,136.12,136.08,7.3484]
[1719038828532,21.8191,136.12,136.08,7.3485]
[1719038829347,21.8191,136.12,136.08,7.3484]
[1719038831652,21.8191,136.12,136.06,7.3493]
[1719038832027,21.8191,136.12,136.07,7.3491]
[1719038833154,21.8191,136.12,136.08,7.3483]
[1719038838257,21.8191,136.12,136.07,7.3489]
[1719038840457,21.8191,136.12,136.08,7.3485]
[1719038842055,21.8191,136.12,136.03,29.43701]
[1719038842260,21.8191,136.12,136.06,7.3496]
[1719038843634,21.8191,136.12,136.0,51.51551]
[1719038843635,21.8191,136.12,136.08,7.3483]
[1719038844248,21.8191,136.12,136.07,7.3489]
[1719038844758,21.8191,136.12,136.05,18.3742]
[1719038845059,21.8191,136.12,136.08,7.3483]
[1719038845238,21.8191,136.12,136.07,7.3489]
[1719038845639,21.8191,136.12,136.08,7.3482]
[1719038845942,21.8191,136.12,136.09,7.3479]
[1719038846648,21.8191,136.12,136.08,7.3485]
[1719038847451,21.8191,136.12,136.05,18.3742]
[1719038847452,21.8191,136.12,136.07,7.3489]
[1719038847639,21.8191,136.12,136.06,7.3494]
[1719038848848,260.4,136.16,136.15,7.3448]
[1719038850437,260.4,136.16,136.15,25.7069]
[1719038853964,260.4,136.16,136.15,7.3448]
[1719038855168,260.4,136.16,136.1,24.7737]
[1719038855381,260.4,136.16,136.13,7.3454]
[1719038855673,260.4,136.16,136.14,7.3453]
[1719038856176,260.4,136.16,136.15,7.3448]
[1719038856673,260.4,136.16,136.14,7.3453]
[1719038858559,260.4,136.16,136.15,7.3448]
[1719038860645,6.2465,136.19,136.15,7.3448]
[1719038861066,6.2465,136.19,136.16,7.3442]
[1719038861471,6.2465,136.19,136.15,7.3446]
[1719038863573,6.2465,136.19,136.12,7.3459]
[1719038863882,6.2465,136.19,136.13,7.3455]
[1719038864178,6.2465,136.19,136.07,47.801105]
[1719038864179,15.8306,136.16,136.07,47.801105]
[1719038864356,15.8306,136.16,136.1,7.3473]
[1719038864552,15.8306,136.16,136.11,7.3467]
[1719038864866,15.8306,136.16,136.12,7.3464]
[1719038865575,15.8306,136.16,136.11,7.3467]
[1719038865871,15.8306,136.16,136.08,18.3703]
[1719038866481,15.8306,136.16,136.11,7.3467]
[1719038867381,15.8306,136.16,136.1,18.3685]
[1719038867582,15.8306,136.16,136.11,7.3467]
[1719038867962,15.8306,136.16,136.1,7.3472]
[1719038869152,15.8306,136.16,136.06,18.3739]
[1719038869153,6.3146,136.15,136.06,18.3739]
[1719038869481,6.3146,136.15,136.09,7.3478]
[1719038869985,6.3146,136.15,136.08,18.3713]
[1719038870152,19.1,136.13,136.06,18.3712]
[1719038870357,15.8449,136.14,136.03,15.6334]
[1719038870556,15.8449,136.14,136.09,7.3478]
[1719038870762,15.8449,136.14,136.08,7.3483]
[1719038871068,15.8449,136.14,136.09,7.3479]
[1719038875185,15.8449,136.14,136.06,18.3731]
[1719038875186,15.8449,136.14,136.11,7.3468]
[1719038875893,15.8449,136.14,136.1,7.3472]
[1719038877178,15.8449,136.14,136.09,7.3478]
[1719038879365,6.36,136.11,136.08,7.3484]
[1719038879564,6.36,136.1,136.09,7.348]
[1719038879993,6.36,136.1,136.08,7.3483]
[1719038880501,6.36,136.1,136.05,19.1]
[1719038880687,6.36,136.09,136.07,7.3491]
[1719038881359,6.36,136.09,136.07,7.3488]
[1719038881563,6.36,136.09,136.08,7.3486]
[1719038882162,6.36,136.1,136.08,7.3486]
[1719038882601,23.1905,136.14,136.08,7.3486]
[1719038882781,6.36,136.1,136.08,7.3486]
[1719038883467,6.36,136.1,136.04,24.7359]
[1719038883468,6.36,136.1,136.07,7.349]
[1719038884263,6.36,136.09,136.06,7.3494]
[1719038884460,6.36,136.08,136.06,7.3494]
[1719038884687,6.36,136.07,136.05,7.35]
[1719038885473,6.36,136.06,136.02,18.3759]
[1719038885696,15.8449,136.08,136.0,15.6334]
[1719038885697,6.36,136.05,136.0,15.6334]
[1719038885985,6.36,136.03,136.01,7.352]
[1719038886191,6.36,136.03,136.02,7.3518]
[1719038886359,6.36,136.03,136.01,7.3521]
[1719038886567,6.36,136.03,136.02,7.3518]
[1719038887391,23.1937,136.08,136.02,7.3518]
[1719038887687,42.2937,136.08,136.02,7.3518]
[1719038889190,34.9449,136.08,136.02,7.3518]
[1719038890100,34.9449,136.08,136.03,7.3512]
[1719038890301,42.2935,136.08,136.02,7.3516]
[1719038890591,7.3491,136.07,136.01,7.3522]
[1719038890795,45.0,136.07,136.01,7.3522]
[1719038891884,45.0,136.07,136.02,7.3517]
[1719038892273,34.9449,136.08,136.03,7.3511]
[1719038892771,34.9449,136.08,136.02,7.3515]
[1719038894404,42.2935,136.08,136.01,7.3521]
[1719038894609,45.0,136.07,136.01,7.3521]
[1719038896795,7.35,136.06,135.99,7.3533]
[1719038897868,21.5829,136.04,135.98,7.3538]
[1719038898068,7.3514,136.03,135.96,7.3549]
[1719038898275,52.3516,136.03,135.93,18.3916]
[1719038898691,52.3516,136.03,135.96,7.355]
[1719038898886,7.3533,136.0,135.91,19.78607494]
[1719038899092,15.3271,135.99,135.93,7.3564]
[1719038899297,7.3545,135.97,135.91,1.39197494]
[1719038899473,7.3545,135.97,135.91,8.74967494]
[1719038899673,6.2558,135.98,135.91,1.39197494]
[1719038900176,7.3548,135.97,135.91,1.39197494]
[1719038901099,13.61,135.98,135.91,8.74967494]
[1719038901393,45.0,135.97,135.91,8.74967494]
[1719038902698,45.0,135.97,135.92,7.3572]
[1719038903297,45.0,135.97,135.91,8.74957494]
[1719038904502,52.3545,135.97,135.91,8.74957494]
[1719038905900,52.3545,135.97,135.91,1.39197494]
[1719038906279,15.3271,136.0,135.91,1.39197494]
[1719038906475,34.4271,136.0,135.92,7.3571]
[1719038906687,7.3535,135.99,135.93,7.3567]
[1719038906887,41.7802,136.0,135.93,7.3567]
[1719038907399,7.3535,135.99,135.93,7.3567]
[1719038908005,7.3535,135.99,135.92,7.357]
[1719038908501,15.3271,136.0,135.92,33.4988]
[1719038908716,15.3271,136.0,135.97,7.3544]
[1719038909793,15.3271,136.0,135.96,7.3549]
[1719038909995,19.1,136.03,135.97,7.3543]
[1719038910177,19.1,136.03,135.94,18.3902]
[1719038910385,7.3526,136.01,135.94,7.356]
[1719038910598,19.1,136.03,135.93,7.3564]
[1719038910599,7.353,136.0,135.93,7.3564]
[1719038910981,7.353,136.0,135.94,7.3561]
[1719038911602,7.353,136.0,135.91,1.39197494]
[1719038911603,7.3535,135.99,135.91,1.39197494]
[1719038911801,26.4531,136.0,135.93,7.3566]
[1719038913201,26.4531,136.0,135.94,7.356]
[1719038914913,26.4531,136.0,135.93,7.3565]
[1719038916288,26.4531,136.0,135.94,7.3561]
[1719038916905,22.7646,135.99,135.93,7.3566]
[1719038917089,28.8834,135.99,135.93,7.3566]
[1719038918188,21.5298,135.99,135.93,7.3566]
[1719038919414,6.38,135.95,135.93,7.3566]
[1719038923111,6.38,135.95,135.94,7.3561]
[1719038924814,6.38,135.95,135.91,1.39197494]
[1719038925110,21.5298,135.99,135.91,1.39197494]
[1719038925318,6.38,135.94,135.92,7.357]
[1719038926008,6.38,135.93,135.91,1.39197494]
[1719038926212,6.38,135.92,135.91,8.74967494]
[1719038926397,6.38,135.92,135.91,1.39197494]
[1719038927410,6.38,135.92,135.91,8.74977494]
[1719038927802,6.38,135.92,135.91,1.39197494]
[1719038929518,6.38,135.92,135.91,8.74977494]
[1719038931027,6.38,135.92,135.91,1.39197494]
[1719038931194,7.3553,135.96,135.91,1.39197494]
[1719038931399,6.38,135.92,135.91,1.39197494]
[1719038931820,7.3547,135.97,135.91,1.39197494]
[1719038932123,6.38,135.92,135.91,1.39197494]
[1719038934703,52.3553,135.96,135.91,1.39197494]
[1719038934926,6.38,135.92,135.91,1.39197494]
[1719038936006,34.62373395,135.99,135.92,7.357]
[1719038936333,6.38,135.96,135.92,7.357]
[1719038936519,6.38,135.95,135.92,7.357]
[1719038938912,267.7524,136.01,135.92,24.7726]
[1719038939127,6.38,135.97,135.93,6.38]
[1719038939443,6.38,135.98,135.94,7.3559]
[1719038939606,6.38,135.97,135.94,7.3559]
[1719038940609,6.38,135.97,135.93,7.3564]
[1719038941427,6.38,135.96,135.93,7.3564]
[1719038943506,6.38,135.97,135.94,7.356]
[1719038945825,6.38,135.97,135.91,1.39197494]
[1719038946034,7.3535,135.99,135.92,7.3569]
[1719038946035,6.38,135.95,135.92,7.3569]
[1719038947634,6.38,135.95,135.93,7.3566]
[1719038950341,6.38,135.95,135.92,7.3569]
[1719038950726,6.38,135.94,135.91,1.39197494]
[1719038950933,6.38,135.95,135.91,1.39197494]
[1719038951429,6.38,135.95,135.93,7.3564]
[1719038951645,7.353,136.0,135.94,7.3561]
[1719038951950,6.38,135.95,135.94,7.3561]
[1719038952121,6.38,135.95,135.93,7.3564]
[1719038952739,7.353,136.0,135.94,7.3561]
[1719038952946,6.38,135.95,135.94,7.3561]
[1719038953122,6.38,135.96,135.94,7.3561]
[1719038954071,7.353,136.0,135.93,7.3565]
[1719038954268,6.38,135.96,135.94,7.3561]
[1719038955467,6.38,135.96,135.93,7.3565]
[1719038957044,6.38,135.96,135.94,7.3561]
[1719038957245,6.38,135.96,135.93,7.3564]
[1719038958975,6.38,135.96,135.94,7.3561]
[1719038962077,6.38,135.96,135.93,7.3565]
[1719038962475,273.51039742,136.01,135.95,7.3556]
[1719038962675,266.15799742,136.01,135.96,7.355]
[1719038962852,6.38,135.98,135.96,7.355]
[1719038963585,6.38,135.98,135.95,7.3553]
[1719038967088,6.38,135.97,135.95,7.3553]
[1719038967569,6.38,135.97,135.94,7.3559]
[1719038967795,6.38,135.96,135.93,7.3564]
[1719038968979,6.38,135.96,135.94,7.356]
[1719038969460,6.38,135.95,135.93,7.3564]
[1719038969862,6.38,135.95,135.91,1.39197494]
[1719038969863,6.38,135.95,135.92,7.357]
[1719038970070,6.38,135.94,135.92,7.357]
[1719038970255,6.38,135.94,135.91,8.74957494]
[1719038970575,6.38,135.93,135.91,8.74957494]
[1719038971053,6.38,135.92,135.91,1.39197494]
[1719038971261,29.2838,135.92,135.83,34.9407]
[1719038971455,6.38,135.88,135.86,7.3604]
[1719038971646,6.38,135.89,135.84,24.7828]
[1719038972156,32.8764,135.94,135.93,7.3563]
[1719038972157,6.38,135.94,135.93,7.3563]
[1719038973070,6.38,135.95,135.93,7.3563]
[1719038973775,6.38,135.95,135.92,7.357]
[1719038974563,3.73881122,135.97,135.92,7.357]
[1719038974755,6.38,135.95,135.92,7.357]
[1719038974958,6.38,135.95,135.93,7.3567]
[1719038975158,3.73881122,135.97,135.93,7.3567]
[1719038975368,6.38,135.94,135.93,7.3567]
[1719038975564,6.38,135.94,135.92,7.357]
[1719038975779,6.38,135.93,135.91,7.3576]
[1719038976573,6.38,135.93,135.88,22.9167]
[1719038977082,6.38,135.94,135.92,7.3569]
[1719038978475,6.38,135.95,135.92,7.3569]
[1719038978978,6.38,135.95,135.91,7.3575]
[1719038979166,6.38,135.94,135.91,7.3575]
[1719038980368,6.38,135.94,135.92,7.3571]
[1719038981583,6.38,135.94,135.91,7.3575]
[1719038982865,6.38,135.93,135.91,7.3575]
[1719038983102,6.38,135.94,135.91,7.3575]
[1719038983574,6.38,135.94,135.92,7.3571]
[1719038983879,6.38,135.94,135.91,7.3576]
[1719038984480,6.38,135.95,135.89,18.3961]
[1719038984781,6.38,135.95,135.9,6.38]
[1719038985771,6.38,135.95,135.93,7.3567]
[1719038986078,21.9261,135.98,135.95,7.3554]
[1719038986985,6.38,135.97,135.95,7.3554]
[1719038988362,21.9261,135.98,135.95,7.3554]
[1719038990682,15.5461,135.98,135.95,7.3554]
[1719038990880,6.38,135.97,135.95,7.3554]
[1719038992667,21.9261,135.98,135.95,7.3554]
[1719038995789,6.489,136.01,135.96,7.3547]
[1719038996006,6.489,136.01,135.98,7.3539]
[1719038996212,6.38,136.0,135.97,7.3543]
[1719038997891,6.38,136.0,135.95,6.38]
[1719038998189,6.38,135.97,135.94,7.3559]
[1719038998972,6.38,135.97,135.95,7.3556]
[1719038999567,6.38,135.97,135.94,7.3559]
[1719039002878,6.38,135.97,135.92,6.5216]
[1719039003079,6.38,135.97,135.94,7.3559]
[1719039003504,37.75709094,136.01,135.92,31.2936]
[1719039003790,6.38,135.98,135.95,7.3553]
[1719039003991,45.10949094,136.01,135.95,7.3553]
[1719039004182,6.38,135.97,135.95,7.3553]
[1719039005200,6.38,135.97,135.94,7.3559]
[1719039006072,6.38,135.97,135.95,7.3555]
[1719039006387,6.38,135.97,135.96,7.3551]
[1719039006796,6.38,135.98,135.95,7.3553]
[1719039009082,12.23709094,136.01,135.95,7.3553]
[1719039009279,12.23709094,136.01,135.92,6.5216]
[1719039009280,12.23709094,136.01,135.94,6.38]
[1719039009507,5.74809094,136.01,135.95,6.38]
[1719039009682,6.38,136.0,135.95,6.38]
[1719039010484,6.38,136.0,135.97,7.3544]
[1719039012294,6.38,136.0,135.95,6.38]
[1719039012295,6.38,136.0,135.96,7.3549]
[1719039013077,6.38,135.99,135.95,7.3553]
[1719039013376,6.38,135.96,135.93,7.3565]
[1719039013577,6.38,135.94,135.91,7.3573]
[1719039013785,6.38,135.94,135.88,18.3972]
[1719039013985,6.38,135.94,135.91,7.3575]
[1719039014689,6.38,135.94,135.92,7.3572]
[1719039015577,16.5756,135.97,135.9,7.3582]
[1719039015578,6.38,135.93,135.9,7.3582]
[1719039015899,6.38,135.91,135.87,7.3596]
[1719039016198,6.38,135.9,135.87,7.3596]
[1719039016403,6.38,135.9,135.88,7.3593]
[1719039016877,6.38,135.9,135.87,7.3598]
[1719039017079,6.38,135.9,135.84,18.4027]
[1719039017080,6.38,135.9,135.86,7.3604]
[1719039017500,6.38,135.9,135.87,7.3598]
[1719039019312,6.38,135.9,135.86,7.3603]
[1719039019497,6.38,135.89,135.86,7.3603]
[1719039020175,6.38,135.89,135.85,7.3608]
[1719039020413,6.38,135.89,135.86,7.3604]
[1719039021409,6.38,135.87,135.84,7.3612]
[1719039022233,6.38,135.87,135.85,7.3608]
[1719039022380,16.5756,135.9,135.86,7.3605]
[1719039022591,16.5756,135.9,135.87,7.3599]
[1719039022592,6.38,135.89,135.87,7.3599]
[1719039023305,6.38,135.89,135.86,7.3604]
[1719039025114,6.38,135.89,135.84,6.38]
[1719039025115,6.38,135.89,135.82,15.6482]
[1719039025320,6.38,135.88,135.85,7.3607]
[1719039025613,6.38,135.88,135.82,15.6482]
[1719039025614,6.38,135.88,135.86,7.3604]
[1719039027401,6.38,135.87,135.84,7.3615]
[1719039028560,6.38,135.89,135.84,6.38]
[1719039028859,6.38,135.89,135.84,13.7413]
[1719039029031,12.758,135.89,135.84,7.3613]
[1719039029635,12.758,135.89,135.84,13.7413]
[1719039030216,12.758,135.89,135.84,7.3613]
[1719039030419,12.758,135.89,135.81,0.8889139]
[1719039030420,6.38,135.86,135.82,7.3625]
[1719039030622,22.9355,135.85,135.81,8.2518139]
[1719039031231,22.9355,135.85,135.81,0.8889139]
[1719039031439,22.9355,135.85,135.81,8.2520139]
[1719039033621,16.5555,135.85,135.81,14.6320139]
[1719039034046,16.5555,135.85,135.81,0.8889139]
[1719039034228,22.9355,135.85,135.81,0.8889139]
[1719039034427,16.5555,135.85,135.81,0.8889139]
[1719039035147,16.5555,135.85,135.81,8.2518139]
[1719039035344,16.5555,135.85,135.81,7.2689139]
[1719039035646,16.5555,135.85,135.81,14.6321139]
[1719039036024,16.5555,135.85,135.81,0.8889139]
[1719039036331,16.5555,135.85,135.81,7.2689139]
[1719039036738,22.9355,135.85,135.81,0.8889139]
[1719039038146,22.9355,135.85,135.81,8.2520139]
[1719039038623,16.5555,135.85,135.81,14.6319139]
[1719039039427,16.5555,135.85,135.81,0.8889139]
[1719039040857,16.5555,135.85,135.81,7.2689139]
[1719039041030,16.5555,135.85,135.82,7.3625]
[1719039041539,16.5555,135.85,135.81,14.6318139]
[1719039041735,16.5555,135.85,135.82,7.3625]
[1719039042135,16.5555,135.88,135.83,7.3619]
[1719039042341,22.9355,135.88,135.83,13.7419]
[1719039043532,22.9355,135.88,135.83,6.38]
[1719039044759,30.2949,135.88,135.83,6.38]
[1719039045854,7.36,135.87,135.83,6.38]
[1719039048059,7.3605,135.86,135.81,0.8889139]
[1719039048256,7.3605,135.86,135.82,6.38]
[1719039048434,22.9355,135.88,135.82,6.38]
[1719039048641,7.3608,135.86,135.83,6.38]
[1719039049549,7.3611,135.85,135.83,6.38]
[1719039049759,7.3607,135.86,135.82,6.38]
[1719039049933,7.3611,135.85,135.82,6.38]
[1719039050335,7.3607,135.86,135.82,6.38]
[1719039052037,7.3611,135.85,135.81,0.8889139]
[1719039052245,7.3611,135.85,135.82,6.38]
[1719039052553,7.3611,135.85,135.81,7.2689139]
[1719039053556,7.3611,135.85,135.81,0.8889139]
[1719039053858,45.0,135.84,135.81,0.8889139]
[1719039054043,52.3618,135.84,135.81,0.8889139]
[1719039054246,45.0,135.84,135.81,0.8889139]
[1719039055355,21.861,135.83,135.81,0.8889139]
[1719039055559,21.861,135.83,135.63,130.0]
[1719039055560,7.3646,135.79,135.63,130.0]
[1719039055742,6.38,135.81,135.76,6.38]
[1719039055950,45.0,135.8,135.76,6.38]
[1719039056144,58.7429,135.82,135.76,6.38]
[1719039056361,58.7429,135.82,135.77,6.38]
[1719039056552,20.0,135.81,135.77,6.38]
[1719039056866,45.0,135.8,135.77,6.38]
[1719039058245,45.0,135.8,135.76,6.38]
[1719039058246,52.3638,135.8,135.76,6.38]
[1719039058565,7.3643,135.79,135.76,6.38]
[1719039059162,7.3643,135.79,135.72,7.3676]
[1719039059371,7.3643,135.79,135.76,6.38]
[1719039059545,7.3653,135.78,135.69,32.0267]
[1719039059745,7.3645,135.79,135.75,6.38]
[1719039060050,7.3645,135.79,135.72,7.3677]
[1719039060261,45.0,135.78,135.75,6.38]
[1719039060456,52.365,135.78,135.75,6.38]
[1719039061062,52.365,135.78,135.72,7.3677]
[1719039061251,52.365,135.78,135.69,24.6621]
[1719039061252,67.961,135.78,135.69,24.6621]
[1719039061454,67.961,135.78,135.71,7.3686]
[1719039061455,7.3656,135.77,135.71,7.3686]
[1719039061660,45.0,135.76,135.71,7.3686]
[1719039061863,45.0,135.76,135.7,7.3689]
[1719039062067,45.0,135.76,135.73,6.38]
[1719039062666,15.596,135.78,135.72,7.3677]
[1719039062876,15.596,135.78,135.7,18.4229]
[1719039063055,22.9609,135.78,135.75,6.38]
[1719039064155,22.9609,135.78,135.71,7.3684]
[1719039064474,45.0,135.77,135.71,7.3684]
[1719039064674,45.0,135.77,135.74,6.38]
[1719039064981,45.0,135.77,135.75,6.38]
[1719039065266,45.0,135.77,135.74,6.38]
[1719039065465,52.3657,135.77,135.71,7.3684]
[1719039065685,52.3657,135.77,135.74,6.38]
[1719039065974,45.0,135.77,135.74,6.38]
[1719039066476,45.0,135.77,135.75,6.38]
[1719039066657,45.0,135.77,135.76,6.38]
[1719039068371,52.3653,135.77,135.74,6.38]
[1719039068683,45.0,135.77,135.75,6.38]
[1719039069372,45.0,135.77,135.74,6.38]
[1719039070676,45.0,135.77,135.71,7.3683]
[1719039070856,45.0,135.77,135.75,6.38]
[1719039071055,45.0,135.77,135.68,19.3145139]
[1719039071056,6.1392,135.76,135.68,0.8889139]
[1719039071274,71.38,135.75,135.68,0.8889139]
[1719039071470,7.3683,135.72,135.69,6.38]
[1719039071857,7.3678,135.73,135.7,6.38]
[1719039072252,45.0,135.72,135.68,0.8889139]
[1719039072474,45.0,135.72,135.7,6.38]
[1719039072778,7.3678,135.73,135.71,6.38]
[1719039072979,7.3678,135.73,135.7,6.38]
[1719039073187,7.3678,135.73,135.68,0.8889139]
[1719039073188,6.38,135.71,135.68,0.8889139]
[1719039073381,20.0,135.7,135.68,0.8889139]
[1719039073557,45.0,135.69,135.68,0.8889139]
[1719039073763,65.0,135.69,135.68,0.8889139]
[1719039073988,72.3697,135.69,135.68,0.8889139]
[1719039074164,52.3697,135.69,135.68,0.8889139]
[1719039075784,52.3697,135.69,135.68,7.2689139]
[1719039075785,7.3697,135.69,135.68,7.2689139]
[1719039075988,18.42,135.73,135.68,7.2689139]
[1719039075989,266.78,135.75,135.69,7.3696]
[1719039076191,266.78,135.75,135.68,7.2689139]
[1719039076192,260.4,135.75,135.72,6.38]
[1719039076366,7.3682,135.72,135.68,0.8889139]
[1719039076563,7.3682,135.72,135.69,6.38]
[1719039077304,7.3682,135.72,135.68,0.8889139]
[1719039077305,7.3688,135.71,135.68,0.8889139]
[1719039077589,7.3688,135.71,135.69,6.38]
[1719039078075,7.3688,135.71,135.68,0.8889139]
[1719039078282,7.3688,135.71,135.69,6.38]
[1719039078493,7.3688,135.71,135.68,7.2689139]
[1719039080287,7.3682,135.72,135.68,7.2689139]
[1719039080463,45.0,135.71,135.68,7.2689139]
[1719039081667,45.0,135.71,135.68,0.8889139]
[1719039081865,15.5609,135.71,135.68,0.8889139]
[1719039082066,45.0,135.7,135.68,0.8889139]
[1719039082690,27.3697,135.69,135.68,0.8889139]
[1719039082893,72.3697,135.69,135.68,0.8889139]
[1719039084501,78.7497,135.69,135.68,0.8889139]
[1719039085407,79.51455909,135.69,135.68,0.8889139]
[1719039085573,7.3717,135.66,135.62,0.41209249]
[1719039085774,45.0,135.65,135.62,6.79209249]
[1719039086186,45.0,135.65,135.62,0.41209249]
[1719039086395,20.0,135.64,135.62,0.41209249]
[1719039086585,45.0,135.63,135.62,0.41209249]
[1719039087899,52.373,135.63,135.62,0.41209249]
[1719039089379,72.373,135.63,135.62,0.41209249]
[1719039091085,20.0,135.63,135.62,0.41209249]
[1719039091397,7.3719,135.65,135.62,6.79209249]
[1719039091702,7.3722,135.65,135.62,6.79209249]
[1719039092380,7.3714,135.66,135.63,6.38]
[1719039092607,23.40475909,135.69,135.65,6.38]
[1719039092919,20.0,135.68,135.65,6.38]
[1719039093203,48.20925909,135.69,135.64,6.38]
[1719039093406,6.38,135.67,135.62,0.41209249]
[1719039093610,7.373,135.63,135.62,0.41209249]
[1719039093912,52.373,135.63,135.62,0.41209249]
[1719039094793,45.0,135.63,135.62,0.41209249]
[1719039095812,45.0,135.64,135.62,0.41209249]
[1719039096382,45.0,135.65,135.62,0.41209249]
[1719039096588,65.0,135.65,135.62,0.41209249]
[1719039096979,72.3719,135.65,135.62,0.41209249]
[1719039098599,65.0,135.65,135.62,0.41209249]
[1719039099385,72.3719,135.65,135.62,0.41209249]
[1719039099788,7.3726,135.64,135.62,0.41209249]
[1719039099997,7.3726,135.64,135.62,6.79209249]
[1719039100208,72.372,135.65,135.62,6.79209249]
[1719039100407,65.0,135.65,135.62,0.41209249]
[1719039100709,65.0,135.65,135.63,6.38]
[1719039102012,72.3719,135.65,135.63,6.38]
[1719039103407,65.0,135.65,135.62,0.41209249]
[1719039103616,7.373,135.63,135.62,0.41209249]
[1719039103918,45.0,135.63,135.62,0.41209249]
[1719039104103,7.373,135.63,135.62,0.41209249]
[1719039105497,52.373,135.63,135.62,0.41209249]
[1719039105697,45.0,135.63,135.62,0.41209249]
[1719039105905,20.0,135.65,135.62,6.79209249]
[1719039106209,8.14326324,135.67,135.63,6.38]
[1719039106408,27.3714,135.66,135.63,6.38]
[1719039106616,7.372,135.65,135.62,0.41209249]
[1719039106799,27.3716,135.66,135.63,6.38]
[1719039107006,20.0,135.66,135.63,6.38]
[1719039107204,20.77216324,135.67,135.65,6.38]
[1719039107412,0.77216324,135.67,135.66,6.38]
[1719039108497,0.77216324,135.67,135.62,7.78529249]
[1719039108698,0.77216324,135.67,135.65,6.38]
[1719039108898,8.14306324,135.67,135.65,6.38]
[1719039109093,0.77216324,135.67,135.65,6.38]
[1719039109309,8.14316324,135.67,135.65,6.38]
[1719039109509,0.77216324,135.67,135.65,6.38]
[1719039109802,7.3704,135.68,135.65,6.38]
[1719039110116,7.3704,135.68,135.62,0.41209249]
[1719039110293,7.3709,135.67,135.62,0.41209249]
[1719039110496,7.3709,135.67,135.65,6.38]
[1719039111718,7.3709,135.67,135.64,6.38]
[1719039112219,7.3704,135.68,135.65,6.38]
[1719039113118,20.0,135.69,135.62,0.41209249]
[1719039113323,7.3709,135.67,135.65,6.38]
[1719039114221,7.3709,135.67,135.62,0.41209249]
[1719039114520,7.3709,135.67,135.65,6.38]
[1719039114714,23.3522,135.72,135.66,13.7509]
[1719039114913,20.0,135.71,135.69,6.38]
[1719039115624,27.3687,135.71,135.69,6.38]
[1719039116219,7.3691,135.7,135.64,7.3723]
[1719039116523,7.3691,135.7,135.68,6.38]
[1719039117415,7.3691,135.7,135.67,6.38]
[1719039118106,7.3702,135.68,135.62,0.41209249]
[1719039118307,7.3702,135.68,135.64,6.38]
[1719039120024,7.3708,135.67,135.64,6.38]
[1719039120905,29.1335,135.67,135.62,0.41209249]
[1719039121222,7.3725,135.64,135.62,0.41209249]
[1719039121729,7.3721,135.65,135.62,0.41209249]
[1719039122527,7.3721,135.65,135.62,6.79209249]
[1719039122723,52.3715,135.66,135.62,6.79209249]
[1719039122921,20.0,135.65,135.62,6.79209249]
[1719039123325,27.3719,135.65,135.62,6.79209249]
[1719039123525,27.3719,135.65,135.62,0.41209249]